{"text_format":"2","workbook":"xlsx","n_sheets":2,"sheets":["ISCWSA R5-1 Error Models","Survey Selection Category List"],"not_rendered":{"charts":0,"images":0,"macros":0,"external_links":0,"defined_names":0,"comments":0,"pivot_tables":0},"unopened":[],"bounds":{"document_bytes":16777216,"sheet_cells":100000,"run_cost":"one","rows_first":2000,"rows_last":500,"rows_between":2000,"halvings":0,"cell_chars":16384,"cell_head_chars":4096},"cells_cut":0,"cells_raw":0,"read":"whole","date_system":"1900"}

{"sheet":"ISCWSA R5-1 Error Models","index":0,"n_rows":104,"n_cols":13,"rows_kept":104,"cut":false,"hidden":false,"merged":[[0,0,0,12]]}
["PROPOSED MASTER LIST OF EDM COMPASS ISCWSA REVISION 5-1 INSTRUMENT PERFORMANCE MODELS BASED ON ISCWSA / SPE WPTS PAPER:  IADC/SPE 178843-MS"]
["No","ISCWSA Prefix","Short Name","Long Name","Rev.","Application","Software Lookup Name","Replaces","FLOATER","Category","Sub-Category","Reference","Correction"]
[1,"A001Mc","MWD+SRGM","ISCWSA MWD + SRGM",5.0999999999999996,"MWD using 1-Year Standard Resolution Geomagnetic Mode (e.g. BGGM up to 2018, MVSD) with no additional corrections",{"$f":"B3&\"_\"&C3&\"_R\"&E3","v":"A001Mc_MWD+SRGM_R5.1"},"A001Mb","N","Magnetic","MWD","SRGM","None"]
[2,"A001Mc","MWD+SRGM_Fl","ISCWSA MWD + SRGM [Floating Rig]",5.0999999999999996,"MWD using 1-Year Standard Resolution Geomagnetic Mode (e.g. BGGM up to 2018, MVSD) with no additional corrections on a Floating Rig","A001Mc_MWD+SRGM_Fl_R5.1","A001Mb","Y","Magnetic","MWD","SRGM","None"]
[3,"A002Mc","MWD+SRGM+SAG","ISCWSA MWD + SRGM + Sag Correction",5.0999999999999996,"MWD using 1-Year Standard Resolution Geomagnetic Mode (e.g. BGGM up to 2018, MVSD) and Sag Correction","A002Mc_MWD+SRGM+SAG_R5.1","A002Mb","N","Magnetic","MWD","SRGM","SAG"]
[4,"A002Mc","MWD+SRGM+SAG_Fl","ISCWSA MWD + SRGM + Sag Correction [Floating Rig]",5.0999999999999996,"MWD using 1-Year Standard Resolution Geomagnetic Mode (e.g. BGGM up to 2018, MVSD) and Sag Corrections on a Floating Rig","A002Mc_MWD+SRGM+SAG_Fl_R5.1","A002Mb","Y","Magnetic","MWD","SRGM","SAG"]
[5,"A003Mc","MWD+SRGM+AX","ISCWSA MWD + SRGM + Axial Correction",5.0999999999999996,"MWD using 1-Year Standard Resolution Geomagnetic Mode (e.g. BGGM up to 2018, MVSD) with Axial Correction","A003Mc_MWD+SRGM+AX_R5.1","A003Mb","N","Magnetic","MWD","SRGM","Axial"]
[6,"A003Mc","MWD+SRGM+AX_Fl","ISCWSA MWD + SRGM + Axial Correction [Floating Rig]",5.0999999999999996,"MWD using 1-Year Standard Resolution Geomagnetic Mode (e.g. BGGM up to 2018, MVSD) with Axial Correction on a Floating Rig","A003Mc_MWD+SRGM+AX_Fl_R5.1","A003Mb","Y","Magnetic","MWD","SRGM","Axial"]
[7,"A004Mc","MWD+SRGM+AX+SAG","ISCWSA MWD + SRGM + Axial Correction + Sag Correction",5.0999999999999996,"MWD using 1-Year Standard Resolution Geomagnetic Mode (e.g. BGGM up to 2018, MVSD) with Axial Correction and Sag Correction","A004Mc_MWD+SRGM+AX+SAG_R5.1","A004Mb","N","Magnetic","MWD","SRGM","Axial+SAG"]
[8,"A004Mc","MWD+SRGM+AX+SAG_Fl","ISCWSA MWD + SRGM + Axial Correction + Sag Correction [Floating Rig]",5.0999999999999996,"MWD using 1-Year Standard Resolution Geomagnetic Mode (e.g. BGGM up to 2018, MVSD) with Axial Correction and Sag Correction on a Floating Rig","A004Mc_MWD+SRGM+AX+SAG_Fl_R5.1","A004Mb","Y","Magnetic","MWD","SRGM","Axial+SAG"]
[9,"A005Mc","MWD+IFR1","ISCWSA MWD + IFR1",5.0999999999999996,"MWD with IFR1 (IFR or Crustal Anomaly Correction)","A005Mc_MWD+IFR1_R5.1","A005Mb","N","Magnetic","MWD","IFR1","None"]
[10,"A005Mc","MWD+IFR1_Fl","ISCWSA MWD + IFR1 [Floating Rig]",5.0999999999999996,"MWD with IFR1 (IFR or Crustal Anomaly Correction) on a Floating Rig","A005Mc_MWD+IFR1_Fl_R5.1","A005Mb","Y","Magnetic","MWD","IFR1","None"]
[11,"A006Mc","MWD+IFR1+AX","ISCWSA MWD + IFR1 + Axial Corr",5.0999999999999996,"MWD with IFR1 (IFR or Crustal Anomaly Correction) and Axial Correction","A006Mc_MWD+IFR1+AX_R5.1","A006Mb","N","Magnetic","MWD","IFR1","Axial"]
[12,"A006Mc","MWD+IFR1+AX_Fl","ISCWSA MWD + IFR1 + Axial Corr [Floating Rig]",5.0999999999999996,"MWD with IFR1 (IFR or Crustal Anomaly Correction) and Axial Correction on a Floating Rig","A006Mc_MWD+IFR1+AX_Fl_R5.1","A006Mb","Y","Magnetic","MWD","IFR1","Axial"]
[13,"A007Mc","MWD+IFR1+AX+SAG","ISCWSA MWD + IFR1 + Axial Corr + Sag Correction",5.0999999999999996,"MWD with IFR1 (IFR or Crustal Anomaly Correction) and Axial Correction and Sag Correction","A007Mc_MWD+IFR1+AX+SAG_R5.1","A007Mb","N","Magnetic","MWD","IFR1","Axial+SAG"]
[14,"A007Mc","MWD+IFR1+AX+SAG_Fl","ISCWSA MWD + IFR1 + Axial Corr + Sag Correction [Floating Rig]",5.0999999999999996,"MWD with IFR1 (IFR or Crustal Anomaly Correction) and Axial Correction and Sag Correction on a Floating Rig","A007Mc_MWD+IFR1+AX+SAG_Fl_R5.1","A007Mb","Y","Magnetic","MWD","IFR1","Axial+SAG"]
[15,"A008Mc","MWD+IFR1+MS","ISCWSA MWD + IFR1 + Multi-Station Correction",5.0999999999999996,"CARE TO BE TAKEN WHILE PLANNING A WELL – Refer to Survey Management Specialist to ensure MS is valid.  MWD with IFR1 (IFR or Crustal Anomaly Correction) and Multi-Station Correction","A008Mc_MWD+IFR1+MS_R5.1","A008Mb","N","Magnetic","MWD","IFR1","Multi-Station"]
[16,"A008Mc","MWD+IFR1+MS_Fl","ISCWSA MWD + IFR1 + Multi-Station Correction [Floating Rig]",5.0999999999999996,"CARE TO BE TAKEN WHILE PLANNING A WELL – Refer to Survey Management Specialist to ensure MS is valid.  MWD with IFR1 (IFR or Crustal Anomaly Correction) and Multi-Station Correction on a Floating Rig","A008Mc_MWD+IFR1+MS_Fl_R5.1","A008Mb","Y","Magnetic","MWD","IFR1","Multi-Station"]
[17,"A009Mc","MWD+IFR1+SAG","ISCWSA MWD + IFR1 + Sag Correction",5.0999999999999996,"MWD with IFR1 (IFR or Crustal Anomaly Correction) and Sag Correction","A009Mc_MWD+IFR1+SAG_R5.1","A009Mb","N","Magnetic","MWD","IFR1","SAG"]
[18,"A009Mc","MWD+IFR1+SAG_Fl","ISCWSA MWD + IFR1 + Sag Correction [Floating Rig]",5.0999999999999996,"MWD with IFR1 (IFR or Crustal Anomaly Correction) and Sag Correction on a Floating Rig","A009Mc_MWD+IFR1+SAG_Fl_R5.1","A009Mb","Y","Magnetic","MWD","IFR1","SAG"]
[19,"A010Mc","MWD+IFR1+SAG+MS","ISCWSA MWD + IFR1 + Sag Correction + Multi-Station Correction",5.0999999999999996,"CARE TO BE TAKEN WHILE PLANNING A WELL – Refer to Survey Management Specialist to ensure MS is valid.  MWD with IFR1 (IFR or Crustal Anomaly Correction) with Sag and Multi-Station Correction","A010Mc_MWD+IFR1+SAG+MS_R5.1","A010Mb","N","Magnetic","MWD","IFR1","SAG+Multi-Station"]
[20,"A010Mc","MWD+IFR1+SAG+MS_Fl","ISCWSA MWD + IFR1 + Sag Correction + Multi-Station Correction [Floating Rig]",5.0999999999999996,"CARE TO BE TAKEN WHILE PLANNING A WELL – Refer to Survey Management Specialist to ensure MS is valid.  MWD with IFR1 (IFR or Crustal Anomaly Correction) with Sag and Multi-Station Correction on a Floating Rig","A010Mc_MWD+IFR1+SAG+MS_Fl_R5.1","A010Mb","Y","Magnetic","MWD","IFR1","SAG+Multi-Station"]
[21,"A011Mc","MWD+IFR2+AX+SAG","ISCWSA MWD + IFR2 + Axial Corr + Sag Correction",5.0999999999999996,"MWD with IFR2 (IIFR or Crustal Anomaly with Time Varying Corrections) and Axial Correction and Sag Correction","A011Mc_MWD+IFR2+AX+SAG_R5.1","A011Mb","N","Magnetic","MWD","IFR2","Axial+SAG"]
[22,"A011Mc","MWD+IFR2+AX+SAG_Fl","ISCWSA MWD + IFR2 + Axial Corr + Sag Correction [Floating Rig]",5.0999999999999996,"MWD with IFR2 (IIFR or Crustal Anomaly with Time Varying Corrections) and Axial Correction and Sag Correction on a Floating Rig","A011Mc_MWD+IFR2+AX+SAG_Fl_R5.1","A011Mb","Y","Magnetic","MWD","IFR2","Axial+SAG"]
[23,"A012Mc","MWD+IFR2+SAG","ISCWSA MWD + IFR2 + Sag Correction",5.0999999999999996,"MWD with IFR2 (IIFR or Crustal Anomaly with Time Varying Corrections) and Sag Correction","A012Mc_MWD+IFR2+SAG_R5.1","A012Mb","N","Magnetic","MWD","IFR2","SAG"]
[24,"A012Mc","MWD+IFR2+SAG_Fl","ISCWSA MWD + IFR2 + Sag Correction [Floating Rig]",5.0999999999999996,"MWD with IFR2 (IIFR or Crustal Anomaly with Time Varying Corrections) and Sag Correction on a Floating Rig","A012Mc_MWD+IFR2+SAG_Fl_R5.1","A012Mb","Y","Magnetic","MWD","IFR2","SAG"]
[25,"A013Mc","MWD+IFR2+SAG+MS","ISCWSA MWD + IFR2 + Sag + Multi-Station Correction",5.0999999999999996,"CARE TO BE TAKEN WHILE PLANNING A WELL – Refer to Survey Management Specialist to ensure MS is valid.  MWD with IFR2 (IIFR or Crustal Anomaly with Time Varying Corrections) with Sag and Multi-Station Correction","A013Mc_MWD+IFR2+SAG+MS_R5.1","A013Mb","N","Magnetic","MWD","IFR2","SAG+Multi-Station"]
[26,"A013Mc","MWD+IFR2+SAG+MS_Fl","ISCWSA MWD + IFR2 + Sag + Multi-Station Correction [Floating Rig]",5.0999999999999996,"CARE TO BE TAKEN WHILE PLANNING A WELL – Refer to Survey Management Specialist to ensure MS is valid.  MWD with IFR2 (IIFR or Crustal Anomaly with Time Varying Corrections) with Sag and Multi-Station Correction on a Floating Rig","A013Mc_MWD+IFR2+SAG+MS_Fl_R5.1","A013Mb","Y","Magnetic","MWD","IFR2","SAG+Multi-Station"]
[27,"A014Mc","EMS+SRGM","ISCWSA EMS + SRGM",5.0999999999999996,"EMS using 1-Year Standard Resolution Geomagnetic Mode (e.g. BGGM up to 2018, MVSD) with no additional corrections","A014Mc_EMS+SRGM_R5.1","A014Mb","N","Magnetic","EMS","SRGM","None"]
[28,"A014Mc","EMS+SRGM_Fl","ISCWSA EMS + SRGM [Floating Rig]",5.0999999999999996,"EMS using 1-Year Standard Resolution Geomagnetic Mode (e.g. BGGM up to 2018, MVSD) with no additional corrections on a Floating Rig","A014Mc_EMS+SRGM_Fl_R5.1","A014Mb","Y","Magnetic","EMS","SRGM","None"]
[29,"A015Mc","EMS+SRGM+AX","ISCWSA EMS + SRGM + Axial Correction",5.0999999999999996,"EMS using 1-Year Standard Resolution Geomagnetic Mode (e.g. BGGM up to 2018, MVSD) with Axial Correction","A015Mc_EMS+SRGM+AX_R5.1","A015Mb","N","Magnetic","EMS","SRGM","Axial"]
[30,"A015Mc","EMS+SRGM+AX_Fl","ISCWSA EMS + SRGM + Axial Correction [Floating Rig]",5.0999999999999996,"EMS using 1-Year Standard Resolution Geomagnetic Mode (e.g. BGGM up to 2018, MVSD) with Axial Correction on a Floating Rig","A015Mc_EMS+SRGM+AX_Fl_R5.1","A015Mb","Y","Magnetic","EMS","SRGM","Axial"]
[31,"A016Mc","EMS+SRGM+AX+SAG","ISCWSA EMS + SRGM + Axial Correction + Sag Correction",5.0999999999999996,"EMS using 1-Year Standard Resolution Geomagnetic Mode (e.g. BGGM up to 2018, MVSD) with Axial Correction and Sag Correction","A016Mc_EMS+SRGM+AX+SAG_R5.1","A016Mb","N","Magnetic","EMS","SRGM","Axial+SAG"]
[32,"A016Mc","EMS+SRGM+AX+SAG_Fl","ISCWSA EMS + SRGM + Axial Correction + Sag Correction [Floating Rig]",5.0999999999999996,"EMS using 1-Year Standard Resolution Geomagnetic Mode (e.g. BGGM up to 2018, MVSD) with Axial Correction and Sag Correction on a Floating Rig","A016Mc_EMS+SRGM+AX+SAG_Fl_R5.1","A016Mb","Y","Magnetic","EMS","SRGM","Axial+SAG"]
[33,"A017Mc","EMS+SRGM+SAG","ISCWSA EMS + SRGM + Sag Correction",5.0999999999999996,"EMS using 1-Year Standard Resolution Geomagnetic Mode (e.g. BGGM up to 2018, MVSD) and Sag Correction",{"$f":"B35&\"_\"&C35&\"_R\"&E35","v":"A017Mc_EMS+SRGM+SAG_R5.1"},"A017Mb","N","Magnetic","EMS","SRGM","SAG"]
[34,"A017Mc","EMS+SRGM+SAG_Fl","ISCWSA EMS + SRGM + Sag Correction [Floating Rig]",5.0999999999999996,"EMS using 1-Year Standard Resolution Geomagnetic Mode (e.g. BGGM up to 2018, MVSD) and Sag Correction on a Floating Rig","A017Mc_EMS+SRGM+SAG_Fl_R5.1","A017Mb","Y","Magnetic","EMS","SRGM","SAG"]
[35,"A018Mb","DIPMETER","ISCWSA Dipmeter or Log Survey Data",5,"Wireline logging tool survey data e.g. Schlumberger GPIT OBDT BGT or Atlas ORIT","A018Mb_DIPMETER_R5","A018Ma","N","Magnetic","Dipmeter / GPIT","LRGM","NONE"]
[36,"A018Mb","DIPMETER_Fl","ISCWSA Dipmeter or Log Survey Data [Floating Rig]",5,"Wireline logging tool survey data e.g. Schlumberger GPIT OBDT BGT or Atlas ORIT on a Floating Rig","A018Mb_DIPMETER_Fl_R5","A018Ma","Y","Magnetic","Dipmeter / GPIT","LRGM","NONE"]
[37,"A019Gb","GYRO-MWD","ISCWSA Gyro MWD",5,"Generic Gyro MWD","A019Gb_GYRO-MWD_R5","A019Ga","N","Gyro","MWD","Generic","None"]
[38,"A019Gb","GYRO-MWD_Fl","ISCWSA Gyro MWD [Floating Rig]",5,"Generic Gyro MWD on a Floating Rig","A019Gb_GYRO-MWD_Fl_R5","A019Ga","Y","Gyro","MWD","Generic","None"]
[39,"A020Gb","GYRO-NS","ISCWSA Gyrocompass Gyro",5,"Generic North Seeking Gyrocompass Gyro","A020Gb_GYRO-NS_R5","A020Ga","N","Gyro","GyroCompass","Generic","None"]
[40,"A020Gb","GYRO-NS_Fl","ISCWSA Gyrocompass Gyro [Floating Rig]",5,"Generic North Seeking Gyrocompass Gyro on a Floating Rig","A020Gb_GYRO-NS_Fl_R5","A020Ga","Y","Gyro","GyroCompass","Generic","None"]
[41,"A021Gc","GYRO-NS-CT","ISCWSA XYZ Accel with XY Static and Continuous Gyro",5,"Generic Hybrid Static Gyrocompass and Continuous Survey","A021Gc_GYRO-NS-CT_R5","A021Gb","N","Gyro","Continuous","Generic","None"]
[42,"A021Gc","GYRO-NS-CT_Fl","ISCWSA XYZ Accel with XY Static and Continuous Gyro [Floating Rig]",5,"Generic Hybrid Static Gyrocompass and Continuous Survey on a Floating Rig","A021Gc_GYRO-NS-CT_Fl_R5","A021Gb","Y","Gyro","Continuous","Generic","None"]
[43,"A022Gb","CB_Film_GMS","ISCWSA Camera Based Film Gyro Multi-Shot",5,"Conventional free gyro e.g. Level Rotor Gyro (LRG)","A022Gb_CB_Film_GMS_R5","A022Ga","N","Gyro","Camera-Based","Multi-Shot","None"]
[44,"A022Gb","CB_Film_GMS_Fl","ISCWSA Camera Based Film Gyro Multi-Shot [Floating Rig]",5,"Conventional free gyro e.g. Level Rotor Gyro (LRG) on a Floating Rig","A022Gb_CB_Film_GMS_Fl_R5","A022Ga","Y","Gyro","Camera-Based","Multi-Shot","None"]
[45,"A023Gb","CB_Film_GSS","ISCWSA Camera Based Film Gyro Single Shot",5,"Conventional free gyro e.g. Level Rotor Gyro (LRG)","A023Gb_CB_Film_GSS_R5","A023Ga","N","Gyro","Camera-Based","Single-Shot","None"]
[46,"A023Gb","CB_Film_GSS_Fl","ISCWSA Camera Based Film Gyro Single Shot [Floating Rig]",5,"Conventional free gyro e.g. Level Rotor Gyro (LRG) on a Floating Rig","A023Gb_CB_Film_GSS_Fl_R5","A023Ga","Y","Gyro","Camera-Based","Single-Shot","None"]
[47,"A024Mb","CB_Film_MMS","ISCWSA Camera Based Film Magnetic Multi-Shot",5,"Camera Based Film Magnetic Multi-Shot with adequate length and spacing in NMDC.","A024Mb_CB_Film_MMS_R5","A024Ma","N","Magnetic","Camera-Based","LRGM","Multi-Shot"]
[48,"A024Mb","CB_Film_MMS_Fl","ISCWSA Camera Based Film Magnetic Multi-Shot [Floating Rig]",5,"Camera Based Film Magnetic Multi-Shot with adequate length and spacing in NMDC on a Floating Rig.","A024Mb_CB_Film_MMS_Fl_R5","A024Ma","Y","Magnetic","Camera-Based","LRGM","Multi-Shot"]
[49,"A025Mb","CB_Film_MSS","ISCWSA Camera Based Film Magnetic Single Shot",5,"Assumes adequate spacing in NMDC.","A025Mb_CB_Film_MSS_R5","A025Ma","N","Magnetic","Camera-Based","LRGM","Single-Shot"]
[50,"A025Mb","CB_Film_MSS_Fl","ISCWSA Camera Based Film Magnetic Single Shot [Floating Rig]",5,"Assumes adequate spacing in NMDC on a Floating Rig","A025Mb_CB_Film_MSS_Fl_R5","A025Ma","Y","Magnetic","Camera-Based","LRGM","Single-Shot"]
[51,"A026Ua","BLIND","ISCWSA BLIND",1,"Where no survey information was recorded or where the information no longer exists and there is no other supporting information to justify the use of another error model.","A026Ua_BLIND_R1","A026Ua","N","Utility","Blind","None","None"]
[52,"A026Ua","BLIND_Fl","ISCWSA BLIND [Floating Rig]",1,"Where no survey information was recorded or where the information no longer exists and there is no other supporting information to justify the use of another error model. On a Floating Rig","A026Ua_BLIND_Fl_R1","A026Ua","Y","Utility","Blind","None","None"]
[53,"A027Ub","INC-ONLY","ISCWSA Inclination Only Surveys",5,"Inclination only surveys for vertical wells with inclinations less than 5 deg (e.g. Totco Teledrift and Anderdrift)","A027Ub_INC-ONLY_R5","A027Ua","N","Utility","Inc-Only","Actual","None"]
[54,"A027Ub","INC-ONLY_Fl","ISCWSA Inclination Only Surveys [Floating Rig]",5,"Inclination only surveys for vertical wells with inclinations less than 5 deg (e.g. Totco Teledrift and Anderdrift) on a Floating Rig","A027Ub_INC-ONLY_Fl_R5","A027Ua","Y","Utility","Inc-Only","Actual","None"]
[55,"A028Ub","INC-ONLY_PLANNED_5_DEG","ISCWSA Inclination Only Planned With 5 Deg Maximum Expected Inclination",5,"Inclination only surveys for vertical wells with inclinations less than 5 deg (e.g. Totco Teledrift and Anderdrift)","A028Ub_INC-ONLY_PLANNED_5_DEG_R5","A028Ua","N","Utility","Inc-Only","Planned","None"]
[56,"A028Ub","INC-ONLY_PLANNED_5_DEG_Fl","ISCWSA Inclination Only Planned With 5 Deg Maximum Expected Inclination [Floating Rig]",5,"Inclination only surveys for vertical wells with inclinations less than 5 deg (e.g. Totco Teledrift and Anderdrift) on a Floating Rig","A028Ub_INC-ONLY_PLANNED_5_DEG_Fl_R5","A028Ua","Y","Utility","Inc-Only","Planned","None"]
[57,"A029Ub","UNKNOWN","ISCWSA UNKNOWN",5,"For use when survey data exists at any interval not exceeding 200ft but the origin or legacy quality of the data is unknown.","A029Ub_UNKNOWN_R5","A029Ua","N","Utility","Unknown","Composite","None"]
[58,"A029Ub","UNKNOWN_Fl","ISCWSA UNKNOWN [Floating Rig]",5,"For use when survey data exists at any interval not exceeding 200ft but the origin or legacy quality of the data is unknown.","A029Ub_UNKNOWN_Fl_R5","A029Ua","Y","Utility","Unknown","Composite","None"]
[59,"A030Ua","ZERO-ERROR","ISCWSA Zero Error",1,"To give zero position uncertainty down to a particular depth.","A030Ua_ZERO-ERROR_R1","A030Ua","N","Utility","Zero-Error","No Error","None"]
["No","ISCWSA Prefix","Short Name","Long Name","Rev.","Application","Software Lookup Name","Replaces",null,"Category","Sub-Category","Reference","Correction"]
[1,"B001Mc","MWD+HRGM","ISCWSA MWD + HRGM",5.0999999999999996,"MWD using 1-year High Resolution Geomagnetic Model with spherical harmonic degree of 720 or higher (e.g. BGGM2019+, HDGM, MVHD)",{"$f":"B63&\"_\"&C63&\"_R\"&E63","v":"B001Mc_MWD+HRGM_R5.1"},"B001Mc","N","Magnetic","MWD","HRGM","None"]
[2,"B001Mc","MWD+HRGM_Fl","ISCWSA MWD + HRGM [Floating Rig]",5.0999999999999996,"MWD using 1-year High Resolution Geomagnetic Model with spherical harmonic degree of 720 or higher (e.g. BGGM2019+, HDGM, MVHD) on a Floating Rig","B001Mc_MWD+HRGM_Fl_R5.1","B001Mc","Y","Magnetic","MWD","HRGM","None"]
[3,"B002Mc","MWD+HRGM+AX","ISCWSA MWD + HRGM + Axial Correction",5.0999999999999996,"MWD using 1-year High Resolution Geomagnetic Model with spherical harmonic degree of 720 or higher (e.g. BGGM2019+, HDGM, MVHD) with Axial Correction","B002Mc_MWD+HRGM+AX_R5.1","B002Mc","N","Magnetic","MWD","HRGM","Axial"]
[4,"B002Mc","MWD+HRGM+AX_Fl","ISCWSA MWD + HRGM + Axial Correction [Floating Rig]",5.0999999999999996,"MWD using 1-year High Resolution Geomagnetic Model with spherical harmonic degree of 720 or higher (e.g. BGGM2019+, HDGM, MVHD) with Axial Correction on a Floating Rig","B002Mc_MWD+HRGM+AX_Fl_R5.1","B002Mc","Y","Magnetic","MWD","HRGM","Axial"]
[5,"B003Mc","MWD+HRGM+AX+SAG","ISCWSA MWD + HRGM + Axial Correction + Sag Correction",5.0999999999999996,"MWD using 1-year High Resolution Geomagnetic Model with spherical harmonic degree of 720 or higher (e.g. BGGM2019+, HDGM, MVHD) with Axial Correction and Sag Correction","B003Mc_MWD+HRGM+AX+SAG_R5.1","B003Mc","N","Magnetic","MWD","HRGM","Axial+SAG"]
[6,"B003Mc","MWD+HRGM+AX+SAG_Fl","ISCWSA MWD + HRGM + Axial Correction + Sag Correction [Floating Rig]",5.0999999999999996,"MWD using 1-year High Resolution Geomagnetic Model with spherical harmonic degree of 720 or higher (e.g. BGGM2019+, HDGM, MVHD) with Axial Correction and Sag Correction on a Floating Rig","B003Mc_MWD+HRGM+AX+SAG_Fl_R5.1","B003Mc","Y","Magnetic","MWD","HRGM","Axial+SAG"]
[7,"B004Mc","MWD+HRGM+SAG","ISCWSA MWD + HRGM + Sag Correction",5.0999999999999996,"MWD using 1-year High Resolution Geomagnetic Model with spherical harmonic degree of 720 or higher (e.g. BGGM2019+, HDGM, MVHD) and Sag Correction","B004Mc_MWD+HRGM+SAG_R5.1","B004Mc","N","Magnetic","MWD","HRGM","SAG"]
[8,"B004Mc","MWD+HRGM+SAG_Fl","ISCWSA MWD + HRGM + Sag Correction [Floating Rig]",5.0999999999999996,"MWD using 1-year High Resolution Geomagnetic Model with spherical harmonic degree of 720 or higher (e.g. BGGM2019+, HDGM, MVHD) and Sag Correction on a Floating Rig","B004Mc_MWD+HRGM+SAG_Fl_R5.1","B004Mc","Y","Magnetic","MWD","HRGM","SAG"]
[9,"B005Mc","MWD+HRGM+SAG+MS","ISCWSA MWD + HRGM + Sag + Multi-Station Correction",5.0999999999999996,"CARE TO BE TAKEN WHILE PLANNING A WELL – Refer to Survey Management Specialist to ensure MS is valid.  MWD Using a High Resolution Geomagnetic Model (HRGM) with spherical harmonic degree of 720 or higher (e.g. HDGM or MVHD) with Sag Correction and Multi-Station Correction","B005Mc_MWD+HRGM+SAG+MS_R5.1","B005Mc","N","Magnetic","MWD","HRGM","SAG+Multi-Station"]
[10,"B005Mc","MWD+HRGM+SAG+MS_Fl","ISCWSA MWD + HRGM + Sag + Multi-Station Correction [Floating Rig]",5.0999999999999996,"CARE TO BE TAKEN WHILE PLANNING A WELL – Refer to Survey Management Specialist to ensure MS is valid.  MWD Using a High Resolution Geomagnetic Model (HRGM) with spherical harmonic degree of 720 or higher (e.g. HDGM or MVHD) with Sag Correction and Multi-Station Correction on a Floating Rig","B005Mc_MWD+HRGM+SAG+MS_Fl_R5.1","B005Mc","Y","Magnetic","MWD","HRGM","SAG+Multi-Station"]
[11,"B006Mc","MWD+LRGM","ISCWSA MWD + LRGM",5.0999999999999996,"MWD using Low Resolution Geomagnetic Model (e.g. Updated less frequently than yearly, EMM, CGRF, IGRF, WMM)","B006Mc_MWD+LRGM_R5.1","B006Mc","N","Magnetic","MWD","LRGM","None"]
[12,"B006Mc","MWD+LRGM_Fl","ISCWSA MWD + LRGM [Floating Rig]",5.0999999999999996,"MWD using Low Resolution Geomagnetic Model (e.g. Updated less frequently than yearly, EMM, CGRF, IGRF, WMM) on a Floating Rig","B006Mc_MWD+LRGM_Fl_R5.1","B006Mc","Y","Magnetic","MWD","LRGM","None"]
[13,"B007Mc","MWD+LRGM+AX","ISCWSA MWD + LRGM + Axial Correction",5.0999999999999996,"MWD using Low Resolution Geomagnetic Model (e.g. Updated less frequently than yearly, EMM, CGRF, IGRF, WMM) with Axial Correction","B007Mc_MWD+LRGM+AX_R5.1","B007Mc","N","Magnetic","MWD","LRGM","Axial"]
[14,"B007Mc","MWD+LRGM+AX_Fl","ISCWSA MWD + LRGM + Axial Correction [Floating Rig]",5.0999999999999996,"MWD using Low Resolution Geomagnetic Model (e.g. Updated less frequently than yearly, EMM, CGRF, IGRF, WMM) with Axial Correction on a Floating Rig","B007Mc_MWD+LRGM+AX_Fl_R5.1","B007Mc","Y","Magnetic","MWD","LRGM","Axial"]
[15,"B008Mc","MWD+LRGM+AX+SAG","ISCWSA MWD + LRGM + Axial Correction + Sag Correction",5.0999999999999996,"MWD using Low Resolution Geomagnetic Model (e.g. Updated less frequently than yearly, EMM, CGRF, IGRF, WMM) with Axial Correction and Sag Correction","B008Mc_MWD+LRGM+AX+SAG_R5.1","B008Mc","N","Magnetic","MWD","LRGM","Axial+SAG"]
[16,"B008Mc","MWD+LRGM+AX+SAG_Fl","ISCWSA MWD + LRGM + Axial Correction + Sag Correction [Floating Rig]",5.0999999999999996,"MWD using Low Resolution Geomagnetic Model (e.g. Updated less frequently than yearly, EMM, CGRF, IGRF, WMM) with Axial Correction and Sag Correction on a Floating Rig","B008Mc_MWD+LRGM+AX+SAG_Fl_R5.1","B008Mc","Y","Magnetic","MWD","LRGM","Axial+SAG"]
[17,"B009Mc","MWD+LRGM+SAG","ISCWSA MWD + LRGM + Sag Correction",5.0999999999999996,"MWD using Low Resolution Geomagnetic Model (e.g. Updated less frequently than yearly, EMM, CGRF, IGRF, WMM) with Sag Correction","B009Mc_MWD+LRGM+SAG_R5.1","B009Mc","N","Magnetic","MWD","LRGM","SAG"]
[18,"B009Mc","MWD+LRGM+SAG_Fl","ISCWSA MWD + LRGM + Sag Correction [Floating Rig]",5.0999999999999996,"MWD using Low Resolution Geomagnetic Model (e.g. Updated less frequently than yearly, EMM, CGRF, IGRF, WMM) with Sag Correction on a Floating Rig","B009Mc_MWD+LRGM+SAG_Fl_R5.1","B009Mc","Y","Magnetic","MWD","LRGM","SAG"]
[19,"B010Mc","EMS+IFR1+AX+SAG","ISCWSA EMS + IFR1 + Axial Corr + Sag Correction",5.0999999999999996,"EMS with IFR1 (IFR or Crustal Anomaly Correction) and Axial Correction and Sag Correction","B010Mc_EMS+IFR1+AX+SAG_R5.1","B010Mc","N","Magnetic","EMS","IFR1","AX+SAG"]
[20,"B010Mc","EMS+IFR1+AX+SAG_Fl","ISCWSA EMS + IFR1 + Axial Corr + Sag Correction [Floating Rig]",5.0999999999999996,"EMS with IFR1 (IFR or Crustal Anomaly Correction) and Axial Correction and Sag Correction on a Floating Rig","B010Mc_EMS+IFR1+AX+SAG_Fl_R5.1","B010Mc","Y","Magnetic","EMS","IFR1","AX+SAG"]
[21,"B011Mc","EMS+IFR1+SAG","ISCWSA EMS + IFR1 + Sag Correction",5.0999999999999996,"EMS with IFR1 (IFR or Crustal Anomaly Correction) and Sag Correction","B011Mc_EMS+IFR1+SAG_R5.1","B011Mc","N","Magnetic","EMS","IFR1","SAG"]
[22,"B011Mc","EMS+IFR1+SAG_Fl","ISCWSA EMS + IFR1 + Sag Correction [Floating Rig]",5.0999999999999996,"EMS with IFR1 (IFR or Crustal Anomaly Correction) and Sag Correction on a Floating Rig","B011Mc_EMS+IFR1+SAG_Fl_R5.1","B011Mc","Y","Magnetic","EMS","IFR1","SAG"]
[23,"B012Mc","EMS+IFR1+SAG+MS","ISCWSA EMS + IFR1 + Sag + Multi-Station Correction",5.0999999999999996,"CARE TO BE TAKEN WHILE PLANNING A WELL – Refer to Survey Management Specialist to ensure MS is valid.  EMS with IFR1 (IFR or Crustal Anomaly Correction) with Sag and Multi-Station Correction","B012Mc_EMS+IFR1+SAG+MS_R5.1","B012Mc","N","Magnetic","EMS","IFR1","SAG+Multi-Station"]
[24,"B012Mc","EMS+IFR1+SAG+MS_Fl","ISCWSA EMS + IFR1 + Sag + Multi-Station Correction [Floating Rig]",5.0999999999999996,"CARE TO BE TAKEN WHILE PLANNING A WELL – Refer to Survey Management Specialist to ensure MS is valid.  EMS with IFR1 (IFR or Crustal Anomaly Correction) with Sag and Multi-Station Correction on a Floating Rig","B012Mc_EMS+IFR1+SAG+MS_Fl_R5.1","B012Mc","Y","Magnetic","EMS","IFR1","SAG+Multi-Station"]
[25,"B013Mc","EMS+HRGM","ISCWSA EMS + HRGM",5.0999999999999996,"EMS using 1-year High Resolution Geomagnetic Model with spherical harmonic degree of 720 or higher (e.g. BGGM2019+, HDGM, MVHD)","B013Mc_EMS+HRGM_R5.1","B013Mc","N","Magnetic","EMS","HRGM","None"]
[26,"B013Mc","EMS+HRGM_Fl","ISCWSA EMS + HRGM [Floating Rig]",5.0999999999999996,"EMS using 1-year High Resolution Geomagnetic Model with spherical harmonic degree of 720 or higher (e.g. BGGM2019+, HDGM, MVHD) on a Floating Rig","B013Mc_EMS+HRGM_Fl_R5.1","B013Mc","Y","Magnetic","EMS","HRGM","None"]
[27,"B014Mc","EMS+HRGM+AX","ISCWSA EMS + HRGM + Axial Correction",5.0999999999999996,"EMS using 1-year High Resolution Geomagnetic Model with spherical harmonic degree of 720 or higher (e.g. BGGM2019+, HDGM, MVHD) with Axial Correction","B014Mc_EMS+HRGM+AX_R5.1","B014Mc","N","Magnetic","EMS","HRGM","Axial"]
[28,"B014Mc","EMS+HRGM+AX_Fl","ISCWSA EMS + HRGM + Axial Correction [Floating Rig]",5.0999999999999996,"EMS using 1-year High Resolution Geomagnetic Model with spherical harmonic degree of 720 or higher (e.g. BGGM2019+, HDGM, MVHD) with Axial Correction on a Floating Rig","B014Mc_EMS+HRGM+AX_Fl_R5.1","B014Mc","Y","Magnetic","EMS","HRGM","Axial"]
[29,"B015Mc","EMS+HRGM+AX+SAG","ISCWSA EMS + HRGM + Axial Correction + Sag Correction",5.0999999999999996,"EMS using 1-year High Resolution Geomagnetic Model with spherical harmonic degree of 720 or higher (e.g. BGGM2019+, HDGM, MVHD) with Axial Correction and Sag Correction","B015Mc_EMS+HRGM+AX+SAG_R5.1","B015Mc","N","Magnetic","EMS","HRGM","Axial+SAG"]
[30,"B015Mc","EMS+HRGM+AX+SAG_Fl","ISCWSA EMS + HRGM + Axial Correction + Sag Correction [Floating Rig]",5.0999999999999996,"EMS using 1-year High Resolution Geomagnetic Model with spherical harmonic degree of 720 or higher (e.g. BGGM2019+, HDGM, MVHD) with Axial Correction and Sag Correction on a Floating Rig","B015Mc_EMS+HRGM+AX+SAG_Fl_R5.1","B015Mc","Y","Magnetic","EMS","HRGM","Axial+SAG"]
[31,"B016Mc","EMS+HRGM+SAG","ISCWSA EMS + HRGM + Sag Correction",5.0999999999999996,"EMS using 1-year High Resolution Geomagnetic Model with spherical harmonic degree of 720 or higher (e.g. BGGM2019+, HDGM, MVHD) with Sag Correction","B016Mc_EMS+HRGM+SAG_R5.1","B016Mc","N","Magnetic","EMS","HRGM","SAG"]
[32,"B016Mc","EMS+HRGM+SAG_Fl","ISCWSA EMS + HRGM + Sag Correction [Floating Rig]",5.0999999999999996,"EMS using 1-year High Resolution Geomagnetic Model with spherical harmonic degree of 720 or higher (e.g. BGGM2019+, HDGM, MVHD) with Sag Correction on a Floating Rig","B016Mc_EMS+HRGM+SAG_Fl_R5.1","B016Mc","Y","Magnetic","EMS","HRGM","SAG"]
[33,"B017Mc","EMS+LRGM","ISCWSA EMS + LRGM",5.0999999999999996,"EMS using Low Resolution Geomagnetic Model (e.g. Updated less frequently than yearly, EMM, CGRF, IGRF, WMM)","B017Mc_EMS+LRGM_R5.1","B017Mc","N","Magnetic","EMS","LRGM","None"]
[34,"B017Mc","EMS+LRGM_Fl","ISCWSA EMS + LRGM [Floating Rig]",5.0999999999999996,"EMS using Low Resolution Geomagnetic Model (e.g. Updated less frequently than yearly, EMM, CGRF, IGRF, WMM) on a Floating Rig","B017Mc_EMS+LRGM_Fl_R5.1","B017Mc","Y","Magnetic","EMS","LRGM","None"]
[35,"B018Md","EMS+LRGM+AX","ISCWSA EMS + LRGM + Axial Correction",5.0999999999999996,"EMS using Low Resolution Geomagnetic Model (e.g. Updated less frequently than yearly, EMM, CGRF, IGRF, WMM) with Axial Correction","B018Md_EMS+LRGM+AX_R5.1","B018Md","N","Magnetic","EMS","LRGM","Axial"]
[36,"B018Md","EMS+LRGM+AX_Fl","ISCWSA EMS + LRGM + Axial Correction [Floating Rig]",5.0999999999999996,"EMS using Low Resolution Geomagnetic Model (e.g. Updated less frequently than yearly, EMM, CGRF, IGRF, WMM) with Axial Correction on a Floating Rig","B018Md_EMS+LRGM+AX_Fl_R5.1","B018Md","Y","Magnetic","EMS","LRGM","Axial"]
[37,"B019Md","EMS+LRGM+AX+SAG","ISCWSA EMS + LRGM + Axial Correction + Sag Correction",5.0999999999999996,"EMS using Low Resolution Geomagnetic Model (e.g. Updated less frequently than yearly, EMM, CGRF, IGRF, WMM) with Axial Correction and Sag Correction","B019Md_EMS+LRGM+AX+SAG_R5.1","B019Md","N","Magnetic","EMS","LRGM","Axial+SAG"]
[38,"B019Md","EMS+LRGM+AX+SAG_Fl","ISCWSA EMS + LRGM + Axial Correction + Sag Correction [Floating Rig]",5.0999999999999996,"EMS using Low Resolution Geomagnetic Model (e.g. Updated less frequently than yearly, EMM, CGRF, IGRF, WMM) with Axial Correction and Sag Correction on a Floating Rig","B019Md_EMS+LRGM+AX+SAG_Fl_R5.1","B019Md","Y","Magnetic","EMS","LRGM","Axial+SAG"]
[39,"B020Mc","EMS+LRGM+SAG","ISCWSA EMS + LRGM + Sag Correction",5.0999999999999996,"EMS using Low Resolution Geomagnetic Model (e.g. Updated less frequently than yearly, EMM, CGRF, IGRF, WMM) with Sag Correction","B020Mc_EMS+LRGM+SAG_R5.1","B020Mc","N","Magnetic","EMS","LRGM","SAG"]
[40,"B020Mc","EMS+LRGM+SAG_Fl","ISCWSA EMS + LRGM + Sag Correction [Floating Rig]",5.0999999999999996,"EMS using Low Resolution Geomagnetic Model (e.g. Updated less frequently than yearly, EMM, CGRF, IGRF, WMM) with Sag Correction on a Floating Rig","B020Mc_EMS+LRGM+SAG_Fl_R5.1","B020Mc","Y","Magnetic","EMS","LRGM","SAG"]
[41,"B021Ga","FINDS","ISCWSA BHI Ferranti FINDS",1,"Ferranti FINDS Inertial Surveys","B021Ga_FINDS_R1","B021Ga","N","Gyro","Feranti","Inertial","None"]
[42,"B022Ua","BLIND+TREND","ISCWSA BLIND+TREND",1,"Where no survey information was recorded but where some other information exists such as the BHA records or Bit-run summaries or some other relevant formation or drilling knowledge exists concerning the expected trends of the wellpath. May only be assigned for specific cases with a Dispensation.","B022Ua_BLIND+TREND_R1","B022Ua","N","Utility","Blind","TREND","None"]

{"sheet":"Survey Selection Category List","index":1,"n_rows":48,"n_cols":7,"rows_kept":48,"cut":false,"hidden":false,"merged":[[32,0,32,2],[0,0,0,2],[0,4,0,6],[8,4,8,6],[18,0,18,2],[22,4,22,6]]}
["MAGNETIC CORRCTION TYPE PICKLIST",null,null,null,"INCLINATION-ONLY TYPE PICKLIST"]
["key_id","code","description",null,"key_id","code","description"]
["00001","MINONE","None",null,"00001","IACT","Actual"]
["00002","MIAX","Axial",null,"00002","IPLAN","Planned"]
["00003","MIAXS","Axial+Sag",null,"00003","ICALC","Calculated Field Departure"]
["00004","MISAG","Sag",null,"00004","IEST","Estimated Field Departure"]
["00005","MIMSA","Sag+Multi-Station Analysis"]
["00006","MIMSA","Multi-Station Analysis"]
["00007","MIFDIRSAG","FDIR+Sag",null,"GYRO TYPE PICKLIST"]
["00008","MIFDIR+Gyro","FDIR+Gyro",null,"key_id","code","description"]
["00009","MIFDIR+Gyro+SAG","FDIR+Gyro+Sag",null,"00001","GMWD","Gyro MWD"]
["00010","MIFDIRHIFINAV","FDIR+HiFiNav",null,"00002","GCONT","Continuous"]
["00011","MISLBDMAG","SLB DMAG",null,"00003","GGYC","Gyro Compass"]
["00012","MISLBGMAG","SLB GMAG",null,"00004","GHYB","Hybrid"]
["00013","MISLBTRULINK","SLB TruLink",null,"00005","GINS","Inertial Guidance"]
["00014","MIFDIR","FDIR",null,"00006","GCB","Camera Based"]
[{"$nulls":4},"00007","GVEND","Contractor (C)"]
[{"$nulls":4},"00008","GMEMS","MEMS Gyro"]
["MAGNETIC SURVEY TYPE PICKLIST",null,null,null,"00009","GMEMSGMWD","MEMS Gyro MWD"]
["key_id","code","description",null,"00010","GCVRG","3-AXIS CVRG SOLID STATE"]
["00001","MMWD","MWD",null,"00011","GAADG","All Attitude Drop Gyro"]
["00002","MDIP","Dipmeter"]
["00003","MEMS","EMS",null,"GYRO CONTRACTOR PICKLIST"]
["00004","MCB","Camera Based",null,"key_id","code","description"]
["00005","MVEND","Contractor (C)",null,"00001","CBH","Baker Hughes"]
["00006","MRSS","RSS",null,"00002","CGYRO","GyroData"]
["00007","MMOTOR","LWDM",null,"00003","CSDI","Scientific Drilling Intl."]
["00008","MLWD","LWD",null,"00004","CHAL","Halliburton"]
["00009","MPMR","Passive Magnetic Ranging",null,"00005","CSCH","Schlumberger"]
["00010","MAMR","Active Magnetic Ranging",null,"00006","OTH","Other"]
["00011","RMRS","Rotating Magnet Ranging System",null,"00007","CWFD","Weatherford"]
[{"$nulls":4},"00008","CVES","Vaughn"]
["GEOMOAGNETIC MODEL REFERENCE PICKLIST",null,null,null,"00009","CDHS","DHS"]
["key_id","code","description",null,"00010","CPHX","Phoenix"]
["00001","MDEF","BGGM (Default)",null,"00011","CGASWAY","Gasway"]
["00002","MIFR1","IFR1",null,"00012","CSPT","Stockholm Precision Tools"]
["00003","MIFR2","IFR2 (IIFR)",null,"00013","CCORETECH","Coretech"]
["00004","MHDGM","HDGM",null,"00014","CGGUIDE","Geoguidance"]
["00005","MIGRF","IGRF/WMM",null,"00015","CICEFIELD","Icefield"]
["0006 ","MSRGM","Standard Resolution",null,"00016","CVECTOR","Vector"]
["0007 ","MHRGM","High Resolution",null,"00017","CZENSORTRON","Zensortron"]
["008  ","MLRGM","Low Resolution",null,"00018","CTOTEM","Totem"]
["009  ","MIGRF","IGRF",null,"00019","CZUPT","Zupt"]
["010  ","MWMM","WMM",null,"00020","CMSE","MS Energy"]
["011  ","MEMM","EMM"]
["012  ","MMVHD","MVHD HRGM"]
["013  ","MBGGMP2019SR2","BGGM_Pre2019SR2"]
["014  ","MBGGM2019SR2","BGGM HRGM"]